Cogmind - Beta 15 @@@ ROGUE MODE // 2025.05.27 @ 17:44:35 Player: perambulator Result: Smashed by cave-in Performance ------------- Evolutions (0) 0 Regions Visited (2) 400 Robots Destroyed (15) 75 Value Destroyed (407) 407 Prototype IDs (0) 0 Alien Tech Used (0) 0 Bonus (0) 0 TOTAL SCORE: 882 Bonus ------- None Cogmind --------- Core Integrity 0/250 Matter 299/300 Energy 100/100 System Corruption 11% Temperature Cool (0) Movement Walking (120) Location -10/Mines Parts ------- > --- POWER (1) -------- (None) > --- PROPULSION (2) --- Aluminum Leg > --- UTILITY (2) ------ (None) > --- WEAPON (2) ------- (None) > --- INVENTORY (5) ---- Aluminum Leg Aluminum Leg Core Shielding Particle Gun Peak State ------------ > --- POWER ------------ Ion Engine > --- PROPULSION ------- Aluminum Leg Aluminum Leg > --- UTILITY ---------- Small Storage Unit Core Shielding > --- WEAPON ----------- Medium Laser Medium Laser > --- INVENTORY -------- Aluminum Leg Aluminum Leg Experimental Sensor Array Core Shielding Particle Gun Mining Claw [Rating: 8] Favorites ----------- Power Light Ion Engine Engine Light Ion Engine Propulsion Aluminum Leg Treads Light Treads Leg Aluminum Leg Utility Small Storage Unit Storage Small Storage Unit Protection Core Shielding Weapon Assault Rifle Energy Gun Medium Laser Ballistic Gun Assault Rifle Slashing Weapon Mining Claw Build | -11 -10 -10 ------- Run | Yrd Mat Min Slots Evolved . | . . . Power . | . . . Propulsion . | . . . Utility . | . . . Weapon . | . . . Parts Attached 15 | 6 6 3 Power 3 | 1 1 1 Engine 3 | 1 1 1 Core . | . . . Reactor . | . . . Propulsion 5 | 2 2 1 Treads 2 | 2 . . Leg 3 | . 2 1 Wheel . | . . . Hover . | . . . Flight . | . . . Utility 2 | 1 1 . Device . | . . . Storage 1 | 1 . . Processor . | . . . Hackware . | . . . Protection 1 | . 1 . Artifact . | . . . Weapon 5 | 2 2 1 Energy Gun 2 | 1 1 . Energy Cannon . | . . . Ballistic Gun 2 | 1 1 . Ballistic Cannon . | . . . Launcher . | . . . Special Weapon . | . . . Impact Weapon . | . . . Slashing Weapon 1 | . . 1 Piercing Weapon . | . . . Special Melee Weapon . | . . . Unidentified Prototypes . | . . . Parts Lost 12 | . 3 9 Power 3 | . 1 2 Propulsion 2 | . . 2 Utility 2 | . . 2 Weapon 5 | . 2 3 Highest Loss Streak 7 | . 2 7 To Critical Strikes . | . . . Average Backups 5 | 1 6 5 Power . | . . . Propulsion 2 | . 2 2 Utility 1 | . . 1 Weapon 1 | . 2 1 Tool/Special . | . . . Unused Backups 5 | . . 5 Power . | . . . Propulsion 2 | . . 2 Utility 2 | . . 2 Weapon 1 | . . 1 Tool/Special . | . . . Average Slot Usage (%) 94 | . 97 90 Engine 12 | . 13 12 Treads 1 | . 1 . Leg 25 | . 26 25 Storage 12 | . 14 11 Protection 13 | . 13 14 Energy Gun 11 | . 2 24 Ballistic Gun 14 | . 25 . Peak Build Rating 8 | 6 7 8 Average Rating 6 | 4 6 6 On Entrance 4 | . 6 7 Naked Turns . | . . . Heaviest Build 15 | 12 13 15 Greatest Support 40 | 40 40 20 Greatest Overweight (x) 3 | 3 . . Average Overweight (x) . | . . . Largest Inventory Capacity 8 | 8 8 8 Average Capacity 7 | 7 8 7 Most Carried 8 | 4 8 6 Average Carried 5 | 1 6 5 Final Capacity 8 | 8 8 5 Final Carried 5 | 4 5 4 Class Distribution -------------------- 100% | Mutant Dominant Class ---------------- Mutant | -10/Materials Mutant | -10/Mines Resources | -11 -10 -10 ----------- Run | Yrd Mat Min Matter Collected 503 | 184 289 30 Remotely . | . . . Salvage Created 593 | . 415 178 Parts 30 | . 25 5 Haulers Intercepted . | . . . Recyclers Shooed 3 | . 3 . Parts Field Recycled . | . . . Retrieved Matter . | . . . Parts Self-Destructed . | . . . Prevented . | . . . Kills | -11 -10 -10 ------- Run | Yrd Mat Min Combat Hostiles Destroyed 14 | . 8 6 Guns 13 | . 8 5 Classes Destroyed 5 | . 3 2 Builder 1 | . 1 . Recycler 1 | . 1 . Swarmer 3 | . . 3 Grunt 10 | . 8 2 Assembled 1 | . . 1 Best Kill Streak 5 | . 5 3 Combat Bots Only 3 | . 3 3 Max Kills in Single Turn 1 | . 1 1 Gunslinging . | . . . Exploded . | . . . Melee . | . . . Uniques/NPCs Destroyed . | . . . Combat | -11 -10 -10 -------- Run | Yrd Mat Min Hostile Shots Fired 84 | . 52 32 Missed 21 | . 10 11 Hits 63 | . 42 21 Projectile 63 | . 42 21 Damage Taken 1255 | . 501 754 Core 252 | . 78 174 Absorbed by Shields . | . . . Redirected to Shielding 55 | . 18 37 Core Remaining (%) 100 | 100 . . Volleys Fired 55 | . 34 21 Largest 2 | . 2 2 Hottest 100 | . 70 100 Shots Fired 108 | . 66 42 Gun 108 | . 66 42 Cannon . | . . . Launcher . | . . . Special . | . . . Kinetic 61 | . 61 . Thermal 47 | . 5 42 Explosive . | . . . Electromagnetic . | . . . Robot Hit Streak 6 | . 6 4 Robot Miss Streak 5 | . 3 5 Penetration Max . | . . . Secondary Targets 3 | . 2 1 Max Gunslinging Chain 1 | . 1 1 Shots Hit Robots 64 | . 43 21 Core Hits 30 | . 21 9 Critical Kills . | . . . Critical Parts Destroyed . | . . . Critical Strikes 3 | . 1 2 Burn 3 | . 1 2 Melee Attacks 6 | . . 6 Impact . | . . . Slashing 6 | . . 6 Piercing . | . . . Sneak Attacks . | . . . Combat Hostiles . | . . . Follow-up Attacks . | . . . Damage Inflicted 847 | . 572 275 Guns 826 | . 551 275 Cannons . | . . . Explosions . | . . . Melee . | . . . Ramming 21 | . 21 . Kinetic 490 | . 490 . Thermal 336 | . 61 275 Explosive . | . . . Electromagnetic . | . . . Impact . | . . . Slashing . | . . . Piercing . | . . . Highest Corruption 8 | . . 8 Average Corruption 6 | . . 6 Corruption Purged . | . . . Corruption Blocked . | . . . Effects 3 | . . 3 Message Errors 1 | . . 1 Matter Fused 2 | . . 2 Overload Shots . | . . . Overflow Damage . | . . . Projectiles . | . . . Explosions . | . . . Melee . | . . . Knockbacks . | . . . Impact . | . . . Kinetic . | . . . Secondary . | . . . Self-Inflicted Damage . | . . . Shots . | . . . Rammed . | . . . Targets Rammed 5 | . 5 . Kicked 5 | . 5 . Crushed . | . . . Highest Temperature 316 | . 83 316 Average Temperature 95 | . 38 107 Received Heat Transfer 342 | . 279 63 Siege Activations . | . . . Martial Activations . | . . . Shielding Activations . | . . . Robots Disrupted . | . . . Combat Hostiles . | . . . Robots Corrupted . | . . . Combat Hostiles . | . . . Parts Fried . | . . . Impact Corruptions . | . . . Robots Melted 1 | . . 1 Combat Hostiles 1 | . . 1 Parts Melted 3 | . . 3 Heat Transferred 1221 | . 259 962 Parts Sabotaged . | . . . Parts Stolen . | . . . Parts Stripped . | . . . Power Chain Reactions . | . . . Alert | -11 -10 -10 ------- Run | Yrd Mat Min Maximum Alert Level . | . . . Low Security (%) 100 | 100 100 100 Level 1 . | . . . Level 2 . | . . . Level 3 . | . . . Level 4 . | . . . Level 5 . | . . . High Security . | . . . Max Security . | . . . Peak Influence 61 | . 60 61 Initial 16 | . . 16 Average 16 | . 16 19 Influence Increases 335 | . 200 135 Destroy 0b10 Robot/C 260 | . 160 100 Destroy 0b10 Robot/NC 10 | . 10 . Destroy Leader 50 | . 30 20 Lose Combat Pursuer 15 | . . 15 Influence Decreases 335 | . 156 179 Entered New Map 28 | . . 28 Time Decay 267 | . 136 131 Lost Part 40 | . 20 20 Squads Dispatched 3 | . 3 . Investigation 2 | . 2 . Extermination . | . . . Reinforcement 1 | . 1 . Assault . | . . . Garrison . | . . . Intercept . | . . . Searches Triggered . | . . . Construction Impeded . | . . . Haulers Reinforced . | . . . Active Scanning Responses . | . . . Cargo Convoy Interrupts . | . . . Stealth | -11 -10 -10 --------- Run | Yrd Mat Min Distress Signals . | . . . Communications Jammed . | . . . Distress Signals . | . . . Times Spotted 25 | . 19 6 Peak Tracking Total 5 | . 5 3 Tactical Retreats 1 | . . 1 Traps | -11 -10 -10 ------- Run | Yrd Mat Min Traps Triggered 1 | . 1 . Indirectly . | . . . Trap Hack Attempts . | . . . Triggered . | . . . Disarmed . | . . . Reprogrammed . | . . . Reused . | . . . Traps Extracted . | . . . Installed . | . . . Triggered . | . . . Machines | -11 -10 -10 ---------- Run | Yrd Mat Min Machines Disabled . | . . . Max in Single Turn . | . . . Machines Repaired . | . . . Machines Dismantled . | . . . Machines Sabotaged . | . . . Overloaded Fab Kills . | . . . Hacking | -11 -10 -10 --------- Run | Yrd Mat Min Machines Accessed 3 | . 3 . Terminals 3 | . 3 . Fabricators . | . . . Repair Stations . | . . . Recycling Units . | . . . Scanalyzers . | . . . Garrison Access . | . . . Total Hacks 6 | . 6 . Successful 2 | . 2 . Failed 4 | . 4 . Catastrophic . | . . . Database Lockouts . | . . . Manual 1 | . 1 . Terminals 6 | . 6 . Fabricators . | . . . Repair Stations . | . . . Recycling Units . | . . . Scanalyzers . | . . . Garrison Access . | . . . Terminal Hacks 2 | . 2 . Alert Level 2 | . 2 . Fabricator Hacks . | . . . Repair Station Hacks . | . . . Recycling Unit Hacks . | . . . Scanalyzer . | . . . Garrison Access Hacks . | . . . Unauthorized Hacks . | . . . Terminals . | . . . Fabricators . | . . . Repair Stations . | . . . Recycling Units . | . . . Scanalyzers . | . . . Garrison Access . | . . . Data Cores Recovered . | . . . Used . | . . . Hacking Detections 3 | . 3 . Full Trace Events 1 | . 1 . Feedback Events . | . . . Feedback Blocked . | . . . Robot Schematics Acquired . | . . . Robots Built . | . . . Authchips . | . . . Time . | . . . Total Robot Build Rating . | . . . Part Schematics Acquired . | . . . Parts Built . | . . . Authchips . | . . . Time . | . . . Total Part Build Rating . | . . . Parts Repaired . | . . . Time . | . . . Parts Recycled . | . . . Recycled Matter . | . . . Retrieved Matter . | . . . Retrieved Components . | . . . Parts Scanalyzed . | . . . Part Schematics Acquired . | . . . Parts Damaged . | . . . Bothacking | -11 -10 -10 ------------ Run | Yrd Mat Min Used RIF Installer . | . . . Robots Hacked . | . . . Non-combat . | . . . Combat . | . . . Robot Hacks Applied . | . . . Relay Couplers Released . | . . . Fabnet Peak Effective % . | . . . Robots Rewired . | . . . Allies Hacked . | . . . Hacks Repelled . | . . . Allies | -11 -10 -10 -------- Run | Yrd Mat Min Total Allies . | . . . Largest Group . | . . . Highest-Rated Group . | . . . Highest-Rated Ally . | . . . Total Orders . | . . . Ally Attacks . | . . . Total Damage . | . . . Kills . | . . . Allies Corrupted . | . . . Allies Melted . | . . . Intel | -11 -10 -10 ------- Run | Yrd Mat Min Active Infowar (turns) . | . . . Robot Analysis Total . | . . . Derelict Logs Recovered 1 | . . 1 Drone Launches . | . . . Drone Recoveries . | . . . Exploration | -11 -10 -10 ------------- Run | Yrd Mat Min Turns Passed 1158 | 75 634 449 Spaces Moved 723 | 42 419 262 Core 11 | 11 . . Treads 44 | 31 13 . Legs 668 | . 406 262 Wheels . | . . . Hover . | . . . Flight . | . . . Fastest Speed 50 | 50 120 120 Average Speed 122 | 150 121 120 Slowest Speed 200 | 200 160 120 Overloaded Moves . | . . . Propulsion Burnouts . | . . . Robots Hopped . | . . . Potential Cave-ins 13 | . . 13 Cave-ins Triggered 5 | . . 5 Exploration Rate (%) 33 | 3 49 48 Regions Visited 2 Branch Regions 1 Pre-discovered Areas . | . . . Known Exits Taken . | . . . Unknown Exits Taken 2 | 1 1 . Scrap Searched . | . . . Spaces Dug 6 | . . 6 Terrain Destroyed 6 | . . 6 Melee 6 | . . 6 Projectile . | . . . AOE . | . . . Terrain Rammed . | . . . Walls Destroyed . | . . . Machines Disabled . | . . . Actions | -11 -10 -10 --------- Run | Yrd Mat Min Total 871 | 51 477 343 Wait 54 | . 5 49 Move 719 | 41 418 260 Hop . | . . . Pick Up 12 | 4 6 2 Fast Attach 8 | 6 1 1 Attach 5 | . 3 2 Detach . | . . . Swap 3 | . 3 . Drop 2 | . 2 . Fire 55 | . 34 21 Melee 6 | . . 6 Ram . | . . . Kick 5 | . 5 . Crush . | . . . Escape Stasis 2 | . . 2 Rewire . | . . . Trap . | . . . Miscellaneous . | . . . Route ------- -11/Scrapyard -10/Materials (discovered 2 exits: [*Mat] / [*Min]) -10/Mines History --------- Turn | Location | Event 11 | -11/Scrapyard | Discovered new exit (range 15) 76 | -11/Scrapyard | Entered Materials 315 | -10/Materials | Build established: Mutant 465 | -10/Materials | Discovered new exit (range 16) 691 | -10/Materials | Discovered new exit (range 13) 710 | -10/Materials | Entered Mines 742 | -10/Mines | Met a Derelict bent on vengeance 855 | -10/Mines | Assembled infested the area 951 | -10/Mines | Found a damaged Exp. Sensor Array with a note attached 953 | -10/Mines | Found Prototype Device 1023 | -10/Mines | Learned Materials stockpile data 1082 | -10/Mines | Crushed by falling debris 1083 | -10/Mines | Core integrity fell below 50% 1083 | -10/Mines | Crushed by falling debris 1109 | -10/Mines | Crushed by falling debris 1137 | -10/Mines | Crushed by falling debris 1137 | -10/Mines | Core integrity fell below 20% 1160 | -10/Mines | Crushed by falling debris 1160 | -10/Mines | Smashed by cave-in Last Messages --------------- Bump into an enemy to attack with the active melee weapon. Even while active, melee weapons do not fire together with ranged weapons in the same volley. System corrupted: Matter fused (-5). The unstable cave ceiling collapses. Crushed by falling debris. Mining Claw destroyed. System corrupted by crushing effect (+1). W4WYXUWQECPK6 S=L#>AGXI,XA The unstable cave ceiling collapses. Crushed by falling debris. Med. Laser destroyed. System corrupted by crushing effect (+1). System corrupted: Matter fused (-6). The unstable cave ceiling collapses. Crushed by falling debris. Ion Engine destroyed. System corrupted by crushing effect (+3). Core Shielding destroyed. Map ----- +----------------------------------------------------+ | ?????????????????????????????????????????????????? | | ??????????????????????????????? ????????????????? | | ??????????????????????????????# ???????????????? | | ??????????????????????????????# #???????????????? | | ??????????????????????????????# #???????????????? | | ??????????????????????????????# ###?????????????? | | ?????????????????????????????## ##????????????? | | ????????????????????????????## ?????????????? | | ????????????????????????????# #?????#???????? | | ????????????????????????????# #???? #???????? | | ????????????????????????##### #???? ##??????? | | ???????????????????###### ###?# ##?????? | | ??????????????????## # ## #?????? | | ??????????????????# # #?????? | | ?????????????###### #?????? | | ?????????????? % #??????? | | ???????????????????# % #?????????? | | ????????????????????# ## ##?????????? | | ????????????????????### # ## #?????????? | | ??????????????????????## ## # #% # #?????????? | | ???????????????????????##### # # # #?????????? | | ???????????????????????????####### ###?????????? | | ?????????????????????????????# # ##???????????? | | ?????????????????????????????## #" #????????????? | | ????????????????????????####### # ##???????????? | | ????????????????????????#@# ## ###?????????? | | ????????????????????????###### # #?????????? | | ?????????????????????????????##### ##?????????? | | ?????????????????????????????????# ###??????????? | | ?????????????????????????????????# #????????????? | | ?????????????????????????????????# #????????????? | | ?????????????????????????????????# #????????????? | | ?????????????????????????????????# #####????????? | | ?????????????????????????????????# #????????? | | ?????????????????????????????????# #????????? | | ?????????????????????????????????##### #????????? | | ?????????????????????????????????????# #????????? | | ?????????????????????????????????????# #????????? | | ??????????????????????????####???????# #????????? | | ??????????????????????##### ##??????# #????????? | | ??????????????????????# ##?????# #????????? | | ???????????????????#### ## * ####?## #??#####?? | | ???????????????????# ##!% ### #### ### | | #######????######??# ## % | | # #???## ##?# %###### ! | | # ##### #?# #????## | | # """ % #?# #?????## ## | | """ ###%# #?# #??????## ## ####### | | # """ #?# ## ## ############### #?????# # | | # #?# #?# #?????## ##?????# # | +----------------------------------------------------+ Best States ------------- Heat Dissipation 25 Energy Generation 10 Energy Capacity 250 Matter Stores 300 Matter Capacity 300 Sight Range 16 Terrain Scan Density 10 Core Shielding 20 Evasion (%) 55 Recoil Reduction 2 Item Schematics ----------------- None Robot Schematics ------------------ None Fabricated ------------ Nothing Repaired ---------- Nothing Alien Tech Used ----------------- None Achievements -------------- It's Just You One Hack Too Far Unlikely Earthworm Challenges ------------ None Game ------ Seed SubatomicRagnarokBank Manual? 0 Play Time 00:13:08 Cumulative 1.0 hours Start 2025.05.27 @ 17:27:05 End 2025.05.27 @ 17:44:35 Sessions 1 Manual Loads 0 Difficulty Rogue Special Mode None Game No. 3 Rogue 3 Adventurer 0 Explorer 0 Win Type - Total 0 Types 0/0/0/0/0/0/0/0/0/0 Lore% 0 Gallery% 3 Achievement% 4 Wizard Run 0 Options --------- Layout 1 ASCII 0 Keyboard 0 Movement Arrows Keybinds 0 Fullscreen 1 Font 18/SmallcapsGlow Map View 25x20 Zoom Use 94% Tactical HUD 0 Map Filters NONE Filters NONE Steam 0 RUN: 48242589-f932-4ce8-893b-d7d7bb330152